fUSD/lending_fUSD_20251211
["ID","MTS","AMOUNT","RATE_DAILY","PERIOD"]
[398182005,1765423337853,-151.0,0.00017989,2]
[398182006,1765423337882,-151.0,0.00017989,2]
[398182007,1765423337911,-151.0,0.00017989,2]
[398182008,1765423337938,-151.0,0.00017989,2]
[398182009,1765423337967,-200.0,0.00017989,2]
[398182010,1765423337995,-151.0,0.00017989,2]
[398182011,1765423338025,-151.0,0.00017989,2]
[398182012,1765423338054,-151.0,0.00017989,2]
[398182013,1765423338081,-151.0,0.00017989,2]
[398182014,1765423338110,-151.0,0.00017989,2]
[398182015,1765423338137,-500.0,0.00017989,2]
[398182016,1765423338166,-500.0,0.00017989,2]
[398182017,1765423338194,-210.14200999,0.0001799,2]
[398182018,1765423338222,-151.0,0.00017997,2]
[398182019,1765423338249,-505.67170368,0.00017999,2]
[398182020,1765423338277,-62.0736239,0.00017999,2]
[398182021,1765423338654,-415.9263761,0.00017989,2]
[398182022,1765423345299,-1042.57,0.00017189,2]
[398182023,1765423345330,-84.0736239,0.00017989,2]
[398182024,1765423345363,-500.0,0.00017989,2]
[398182025,1765423345394,-500.0,0.00017989,2]
[398182026,1765423345423,-151.0,0.00017997,2]
[398182027,1765423345453,-415.9263761,0.00017999,2]
[398182028,1765423345484,-150.0,0.00017999,2]
[398182029,1765423345514,-500.0,0.00017999,2]
[398182030,1765423345703,-3312.87,0.00017999,2]
[398182031,1765423345752,-617.13,0.00017999,2]
[398182032,1765423345781,-150.0,0.00017999,2]
[398182033,1765423345809,-500.0,0.00017999,2]
[398182034,1765423345838,-152.6264382,0.00017999,2]
[398182035,1765423345866,-500.0,0.00017999,2]
[398182036,1765423345895,-150.0,0.00017999,2]
[398182037,1765423345925,-150.0,0.00017999,2]
[398182038,1765423345953,-150.0,0.00017999,2]
[398182039,1765423345982,-500.0,0.00017999,2]
[398182040,1765423346012,-500.0,0.00017999,2]
[398182041,1765423346039,-500.0,0.00017999,2]
[398182042,1765423346067,-150.0,0.00017999,2]
[398182043,1765423346094,-150.0,0.00017999,2]
[398182044,1765423346121,-150.0,0.00017999,2]
[398182045,1765423346149,-150.0,0.00017999,2]
[398182046,1765423346179,-273.74010726,0.00017999,2]
[398182047,1765423346341,-1035.9,0.00017999,2]
[398182048,1765423346370,-265.23251824,0.00017999,2]
[398182049,1765423346405,-500.0,0.00017999,2]
[398182050,1765423346437,-500.0,0.00017999,2]
[398182051,1765423346468,-500.0,0.00017999,2]
[398182052,1765423346500,-500.0,0.00017999,2]
[398182053,1765423346531,-312.04465849,0.00017999,2]
[398182054,1765423346562,-500.0,0.00017999,2]
[398182055,1765423346595,-500.0,0.00017999,2]
[398182056,1765423346626,-273.65564654,0.00017999,2]
[398182057,1765423346727,-226.34435346,0.00017999,2]
[398182058,1765423346759,-500.0,0.00017999,2]
[398182059,1765423346790,-500.0,0.00017999,2]
[398182060,1765423346821,-500.0,0.00017999,2]
[398182061,1765423346853,-500.0,0.00017999,2]
[398182062,1765423346883,-155.88515103,0.00017999,2]
[398182063,1765423346913,-500.0,0.00017999,2]
[398182064,1765423346941,-489.11663553,0.00017999,2]
[398182065,1765423346971,-162.48829217,0.00017999,2]
[398182066,1765423346999,-417.5779397,0.00017999,2]
[398182067,1765423347030,-469.03056404,0.00017999,2]
[398182068,1765423347060,-500.0,0.00017999,2]
[398182069,1765423348121,-286.17340279,0.00017988,2]
[398182070,1765423348134,-500.0,0.00017988,2]
[398182071,1765423348157,-159.12412814,0.00017988,2]
[398182072,1765423348788,-10000.01,0.00017988,2]
[398182073,1765423348850,-10000.01,0.00017988,2]
[398182074,1765423348872,-10000.01,0.00017988,2]
[398182075,1765423348912,-10000.01,0.00017988,2]
[398182076,1765423348932,-10000.01,0.00017988,2]
[398182086,1765423609799,-219.3354,0.00017537,2]
[398182087,1765423615304,5000.0,0.000162,5]
[398182088,1765423624880,250.0,0.000202,30]
[398182089,1765423626404,4120.27966053,0.00015,2]
[398182092,1765423673890,10000.01,0.00017,2]
[398182093,1765423673914,10000.01,0.00017,2]
[398182094,1765423673938,10000.01,0.00017,2]
[398182095,1765423673961,10000.01,0.00017,2]
[398182096,1765423673984,10000.01,0.00017,2]
[398182097,1765423681786,-5879.73033947,0.00017,2]
[398182098,1765423684788,-187.24405606,0.00017,2]
[398182099,1765423685475,-10000.01,0.00017,2]
[398182100,1765423685703,-10000.01,0.00017,2]
[398182102,1765423686858,-301.92755321,0.00017,2]
[398182103,1765423688429,-404.9678363,0.00017,2]
[398182104,1765423689523,-10000.01,0.00017,2]
[398182106,1765423692746,-10000.01,0.00017,2]
[398182107,1765423692854,-10000.01,0.00017,2]
[398182108,1765423696187,-151.0,0.00016997,2]
[398182109,1765423696245,-9698.01,0.00017,2]
[398182110,1765423700313,-10000.01,0.00017,2]
[398182111,1765423700930,1766.62444558,0.00015,2]
[398182112,1765423704445,-10000.01,0.00017,2]
[398182113,1765423709165,-10000.01,0.00017,2]
[398182114,1765423710742,-10000.01,0.00017,2]
[398182115,1765423714052,-500.0,0.00016999,2]
[398182116,1765423714080,-406.96219783,0.00016999,2]
[398182117,1765423714112,-500.0,0.00016999,2]
[398182118,1765423714141,-215.24366046,0.00016999,2]
[398182119,1765423714173,-500.0,0.00016999,2]
[398182120,1765423714200,-500.0,0.00016999,2]
[398182121,1765423714236,-500.0,0.00016999,2]
[398182122,1765423714605,-500.0,0.00016999,2]
[398182123,1765423714614,-500.0,0.00016999,2]
[398182124,1765423714622,-500.0,0.00016999,2]
[398182125,1765423714631,-500.0,0.00016999,2]
[398182126,1765423714640,-500.0,0.00016999,2]
[398182127,1765423714650,-500.0,0.00016999,2]
[398182128,1765423714659,-566.01209243,0.00016999,2]
[398182129,1765423714669,-189.58619099,0.00016999,2]
[398182130,1765423718575,-219.3354,0.00016915,2]
[398182131,1765423718608,-310.41380901,0.00016999,2]
[398182132,1765423718640,-500.0,0.00016999,2]
[398182133,1765423718672,-500.0,0.00016999,2]
[398182134,1765423718712,-500.0,0.00016999,2]
[398182135,1765423718749,-500.0,0.00016999,2]
[398182136,1765423718791,-500.0,0.00016999,2]
[398182137,1765423718825,-500.0,0.00016999,2]
[398182138,1765423718858,-500.0,0.00016999,2]
[398182139,1765423718892,-500.0,0.00016999,2]
[398182140,1765423718924,-440.51158198,0.00016999,2]
[398182141,1765423719119,-59.48841802,0.00016999,2]
[398182142,1765423722442,-500.0,0.00016999,2]
[398182143,1765423722473,-500.0,0.00016999,2]
[398182144,1765423722505,-500.0,0.00016999,2]
[398182145,1765423722727,-500.0,0.00016999,2]
[398182146,1765423722761,-500.0,0.00016999,2]
[398182147,1765423722791,-500.0,0.00016999,2]
[398182148,1765423722822,-500.0,0.00016999,2]
[398182149,1765423722852,-500.0,0.00016999,2]
[398182150,1765423722883,-500.0,0.00016999,2]
[398182151,1765423722913,-500.0,0.00016999,2]
[398182152,1765423723202,-0.01,0.00016999,2]
[398182153,1765423728593,-499.99,0.00016999,2]
[398182154,1765423728624,-500.0,0.00016999,2]
[398182155,1765423728655,-500.0,0.00016999,2]
[398182156,1765423728684,-500.0,0.00016999,2]
[398182157,1765423728714,-500.0,0.00016999,2]
[398182158,1765423728745,-500.0,0.00016999,2]
[398182159,1765423728776,-500.0,0.00016999,2]
[398182160,1765423728805,-500.0,0.00016999,2]
[398182161,1765423728836,-500.0,0.00016999,2]
[398182162,1765423728980,-1000.03,0.00017,2]
[398182163,1765423737103,-500.0,0.00016999,2]
[398182164,1765423737138,-500.0,0.00016999,2]
[398182165,1765423737172,-500.0,0.00016999,2]
[398182166,1765423737207,-500.0,0.00016999,2]
[398182167,1765423737243,-500.0,0.00016999,2]
[398182168,1765423737277,-500.0,0.00016999,2]
[398182169,1765423737587,-4000.01,0.00017,2]
[398182170,1765423740264,-10000.01,0.00017,2]
[398182171,1765423742694,1000.0,0.00017998,3]
[398182172,1765423743284,1000.0,0.00016199,3]
[398182173,1765423751266,-10000.01,0.00017,2]
[398182175,1765423762797,163.44,0.00013641,2]
[398182197,1765423821493,-208.28705964,0.00016999,2]
[398182198,1765423824061,-91.71294036,0.00016999,2]
[398182199,1765423824087,-148.71758783,0.00016999,2]
[398182200,1765423826766,-383.09607632,0.00016999,2]
[398182201,1765423828227,-366.40181393,0.00016999,2]
[398182202,1765423831491,-213.58822172,0.00016999,2]
[398182213,1765423832536,-88.1963002,0.00016999,2]
[398182214,1765423832547,-2597.4036998,0.00017,2]
[398182215,1765423832562,-416.20303398,0.00017,2]
[398182216,1765423832577,-446.99893371,0.00017,2]
[398182217,1765423832590,-1550.51416919,0.00017,2]
[398182218,1765423832606,-85850.17904752,0.00017,2]
[398182219,1765423832619,-20717.55518003,0.00017,2]
[398182220,1765423832637,-452.79700015,0.00017,2]
[398182222,1765423832648,-416.97000018,0.00017,2]
[398182224,1765423832659,-364.74926,0.00017,2]
[398182226,1765423832670,-834.786,0.00017,2]
[398182229,1765423832694,-999.0,0.00017,2]
[398182231,1765423832709,-518.04655203,0.00017,2]
[398182233,1765423832720,-404.53844161,0.00017,2]
[398182343,1765423834714,-409.19074171,0.00017,2]
[398182345,1765423836714,-168.87963396,0.00017,2]
[398182346,1765423837407,-437.49658219,0.00017,2]
[398182347,1765423837461,-47744.08764232,0.00017,2]
[398182348,1765423837518,-26898.99598185,0.00017,2]
[398182349,1765423837528,-2800.1469398,0.00017386,2]
[398182350,1765423837538,-166.68,0.00017568,2]
[398182351,1765423837548,-152.31,0.00017613,2]
[398182352,1765423837562,-150.93,0.00017613,2]
[398182353,1765423837571,-151.05,0.0001764,2]
[398182354,1765423837581,-4696.7921382,0.0001764,2]
[398182355,1765423837592,-212.84132114,0.00017741,2]
[398182356,1765423837603,-507.33734425,0.00017873,2]
[398182357,1765423837612,-398.0380414,0.000179,2]
[398182358,1765423837623,-682.44360026,0.000179,2]
[398182359,1765423837636,-1439.12410585,0.000179,2]
[398182360,1765423837646,-1000.0,0.0001796,2]
[398182361,1765423837657,-500.0,0.00017973,2]
[398182362,1765423837667,-151.0,0.00017985,2]
[398182363,1765423837678,-151.0,0.00017985,2]
[398182365,1765423837687,-151.0,0.00017985,2]
[398182367,1765423837696,-500.0,0.00017987,2]
[398182369,1765423837706,-351.84290663,0.00017987,2]
[398182371,1765423837716,-185.66276277,0.00017987,2]
[398182372,1765423837725,-151.21,0.00017988,2]
[398182374,1765423837735,-152.42,0.00017988,2]
[398182376,1765423837744,-682881.88642377,0.00017988,2]
[398182378,1765423837754,-151.0,0.00017989,2]
[398182380,1765423837763,-151.0,0.00017989,2]
[398182381,1765423837772,-151.0,0.00017989,2]
[398182383,1765423837782,-151.0,0.00017989,2]
[398182386,1765423837792,-151.0,0.00017989,2]
[398182388,1765423837802,-151.0,0.00017989,2]
[398182390,1765423837811,-151.0,0.00017989,2]
[398182391,1765423837821,-151.0,0.00017989,2]
[398182393,1765423837831,-151.0,0.00017989,2]
[398182396,1765423837845,-151.0,0.00017989,2]
[398182397,1765423837855,-151.0,0.00017989,2]
[398182398,1765423837865,-7436.2297239,0.00017991,2]
[398182399,1765423837875,-151.0,0.00017997,2]
[398182401,1765423837885,-1000.0,0.00017999,2]
[398182404,1765423837896,-112320.36553459,0.00018,2]
[398182406,1765423837908,-564.00371279,0.00018,2]
[398182409,1765423837924,-266900.27666377,0.00018,2]
[398182411,1765423837936,-13397.80122703,0.00018,2]
[398182414,1765423837955,-16402.00640134,0.00018,2]
[398182416,1765423837966,-6005.57122494,0.00018,2]
[398182418,1765423837977,-767.66705663,0.00018,2]
[398182420,1765423837988,-1341.69773257,0.00018,2]
[398182422,1765423838001,-1260.0,0.00018,2]
[398182424,1765423838012,-1118.10003,0.00018,2]
[398182426,1765423839949,-1.7e-07,0.00018,2]
[398182427,1765423839968,-1157.57223055,0.00018,2]
[398182428,1765423839989,-8968.96,0.00018,2]
[398182429,1765423840001,-424.61229598,0.00018,2]
[398182431,1765423840014,-447.795,0.00018,2]
[398182434,1765423840025,-999.99995,0.00018,2]
[398182468,1765423842807,-500.0,0.00017999,2]
[398182469,1765423842817,-267.19,0.00017999,2]
[398182470,1765423842827,-547.35757211,0.00018,2]
[398182471,1765423842858,-730.17613341,0.00018,2]
[398182499,1765423845368,-11243.38397272,0.00018,2]
[398182500,1765423845422,-10772.0,0.00018,2]
[398182501,1765423845479,-980.31022159,0.00018,2]
[398182502,1765423845533,-4498.925892,0.00018,2]
[398182503,1765423845587,-222987.51843774,0.00018,2]
[398182506,1765423909828,-345.31876069,0.00016999,2]
[398182507,1765423911856,-154.68123931,0.00016999,2]
[398182508,1765423911882,-58.70761124,0.00016999,2]
[398182509,1765423915019,500.0,0.000169,2]
[398182510,1765423917231,173.92,0.00013699,2]
[398182512,1765423938622,5798.369965,0.00016913,2]
[398182514,1765424036953,166.66,0.0001627,2]
[398182515,1765424037266,166.66,0.00016613,2]
[398182516,1765424037507,166.66,0.00016955,2]
[398182518,1765424079444,500.0,0.00016898,2]
[398182521,1765424162874,159.98926154,0.00016998,2]
[398182536,1765424583057,250.0,0.000202,30]
[398182540,1765424677056,-169.74,0.00017,2]
[398182541,1765424677077,-25.28888179,0.00017,2]
[398182552,1765424898726,2287.29,0.00016722,2]
[398182553,1765424941791,414.98,0.00016723,2]
[398182556,1765424956677,1000.0,0.00017997,3]
[398182574,1765425031494,-500.0,0.00017033,2]
[398182575,1765425031504,-250.0,0.00017046,2]
[398182576,1765425031513,-250.0,0.00017084,2]
[398182577,1765425031523,-1200.0,0.00017097,2]
[398182578,1765425031533,-5.88592063,0.00017097,2]
[398182579,1765425031548,-1194.11407937,0.00017097,2]
[398182580,1765425031557,-300.0,0.00017098,2]
[398182581,1765425031567,-300.0,0.00017098,2]
[398182582,1765425031576,-300.0,0.00017098,2]
[398182583,1765425031586,-578.20924308,0.00017099,2]
[398182584,1765425031595,-200.0,0.00017099,2]
[398182585,1765425031604,-207.4,0.00017099,2]
[398182586,1765425031613,-215.0738,0.00017099,2]
[398182587,1765425031624,-223.0315306,0.00017099,2]
[398182588,1765425031634,-231.28369723,0.00017099,2]
[398182589,1765425031644,-239.84119403,0.00017099,2]
[398182590,1765425031654,-189.55463345,0.00017099,2]
[398182591,1765425031667,-59.16068476,0.00017099,2]
[398182592,1765425031676,-257.91778498,0.00017099,2]
[398182593,1765425031685,-267.46074303,0.00017099,2]
[398182594,1765425031695,-322.6107,0.00017099,2]
[398182595,1765425031704,-150.0,0.00017183,2]
[398182596,1765425031713,-151.0,0.00017184,2]
[398182597,1765425031723,-300.0,0.00017184,2]
[398182598,1765425031732,-2623.15705455,0.00017184,2]
[398182599,1765425031742,-1808.0,0.00017184,2]
[398182600,1765425031751,-277.35679052,0.00017184,2]
[398182601,1765425031761,-3555.48,0.00017194,2]
[398182603,1765425031771,-1808.0,0.00017239,2]
[398182605,1765425031781,-1808.0,0.00017294,2]
[398182606,1765425031790,-166.66,0.00017298,2]
[398182607,1765425031801,-1808.0,0.00017349,2]
[398182608,1765425031811,-1808.0,0.00017404,2]
[398182609,1765425031820,-1808.0,0.00017459,2]
[398182610,1765425031830,-190.0,0.00017481,2]
[398182611,1765425031839,-1353.0,0.00017493,2]
[398182612,1765425031849,-1808.0,0.00017514,2]
[398182613,1765425031858,-219.76448304,0.00017556,2]
[398182614,1765425031868,-1808.0,0.00017569,2]
[398182615,1765425031877,-1742.74644626,0.00017605,2]
[398182616,1765425031891,-500.0,0.00017616,2]
[398182617,1765425031901,-599.0,0.00017623,2]
[398182618,1765425031910,-1808.0,0.00017624,2]
[398182619,1765425031920,-1163.2,0.00017629,2]
[398182620,1765425031930,-500.0,0.00017629,2]
[398182621,1765425031940,-198.0,0.00017629,2]
[398182622,1765425031950,-577.17896346,0.00017629,2]
[398182623,1765425031962,-500.0,0.00017629,2]
[398182624,1765425031972,-151.0,0.00017629,2]
[398182625,1765425031982,-500.0,0.00017629,2]
[398182626,1765425031991,-200.0,0.00017629,2]
[398182627,1765425032001,-151.0,0.00017629,2]
[398182628,1765425032011,-500.0,0.00017629,2]
[398182629,1765425032020,-151.0,0.00017629,2]
[398182630,1765425032030,-500.0,0.00017629,2]
[398182631,1765425032040,-151.0,0.00017629,2]
[398182632,1765425032049,-500.0,0.00017629,2]
[398182633,1765425032058,-151.0,0.00017629,2]
[398182634,1765425032068,-500.0,0.00017629,2]
[398182635,1765425032078,-151.0,0.00017629,2]
[398182636,1765425032088,-245.08391874,0.00017629,2]
[398182637,1765425032097,-151.0,0.00017629,2]
[398182638,1765425032106,-151.0,0.00017629,2]
[398182639,1765425032115,-151.0,0.00017629,2]
[398182640,1765425032124,-151.0,0.00017629,2]
[398182641,1765425032133,-250.0,0.00017629,2]
[398182642,1765425032143,-151.0,0.00017629,2]
[398182643,1765425032153,-151.0,0.00017629,2]
[398182644,1765425032162,-260.8975412,0.00017629,2]
[398182645,1765425032171,-734.0124348,0.00017629,2]
[398182646,1765425032181,-574.12855637,0.00017629,2]
[398182647,1765425032191,-1000.0,0.00017629,2]
[398182648,1765425032200,-1000.0,0.00017629,2]
[398182649,1765425032210,-1000.0,0.00017629,2]
[398182650,1765425032220,-1000.0,0.00017629,2]
[398182651,1765425032229,-1000.0,0.00017629,2]
[398182652,1765425032239,-634.61922215,0.00017629,2]
[398182653,1765425032248,-1000.0,0.00017629,2]
[398182654,1765425032257,-1000.0,0.00017629,2]
[398182655,1765425032267,-622.24294831,0.00017629,2]
[398182656,1765425032277,-250.0,0.00017629,2]
[398182657,1765425032287,-260.03343447,0.00017629,2]
[398182658,1765425032296,-1000.0,0.00017629,2]
[398182659,1765425032305,-1073.74643607,0.00017629,2]
[398182660,1765425032315,-500.0,0.00017629,2]
[398182661,1765425032324,-510.98844166,0.00017629,2]
[398182662,1765425032334,-500.0,0.00017629,2]
[398182663,1765425032343,-500.0,0.00017629,2]
[398182664,1765425032353,-500.0,0.00017629,2]
[398182665,1765425032363,-500.0,0.00017629,2]
[398182666,1765425032372,-500.0,0.00017629,2]
[398182667,1765425032384,-500.0,0.00017629,2]
[398182668,1765425032394,-500.0,0.00017629,2]
[398182669,1765425032403,-500.0,0.00017629,2]
[398182670,1765425032412,-500.0,0.00017629,2]
[398182671,1765425032422,-500.0,0.00017629,2]
[398182672,1765425032431,-276.85563408,0.00017629,2]
[398182673,1765425032440,-500.0,0.00017629,2]
[398182674,1765425032586,-500.0,0.00017629,2]
[398182675,1765425032599,-500.0,0.00017629,2]
[398182676,1765425032609,-500.0,0.00017629,2]
[398182677,1765425032621,-200.0,0.00017629,2]
[398182678,1765425032631,-500.0,0.00017629,2]
[398182679,1765425032640,-500.0,0.00017629,2]
[398182680,1765425032649,-500.0,0.00017629,2]
[398182681,1765425032659,-500.0,0.00017629,2]
[398182682,1765425032668,-152.97245009,0.00017629,2]
[398182683,1765425032678,-4363.99922363,0.0001764,2]
[398182684,1765425032687,-166.66,0.0001764,2]
[398182685,1765425032697,-500.0,0.00017644,2]
[398182686,1765425032707,-334.5472959,0.00017647,2]
[398182687,1765425032716,-628.0,0.00017647,2]
[398182688,1765425032725,-1808.0,0.00017679,2]
[398182689,1765425032735,-245.0,0.00017711,2]
[398182690,1765425032744,-232.39370473,0.00017711,2]
[398182691,1765425032753,-151.0,0.00017732,2]
[398182692,1765425032763,-1808.0,0.00017734,2]
[398182693,1765425032772,-500.0,0.00017753,2]
[398182694,1765425032781,-960.0,0.00017781,2]
[398182695,1765425032791,-2000.0,0.00017781,2]
[398182696,1765425032800,-500.0,0.00017808,2]
[398182697,1765425032810,-1369.8719,0.0001782,2]
[398182698,1765425032819,-291.65,0.00017846,2]
[398182699,1765425032829,-200.0,0.00017855,2]
[398182700,1765425032838,-200.0,0.00017856,2]
[398182701,1765425032848,-200.0,0.00017856,2]
[398182702,1765425032858,-163.0,0.0001789,2]
[398182703,1765425032867,-7956.57567363,0.00017897,2]
[398182704,1765425032894,-586.80506096,0.00017897,2]
[398182705,1765425032906,-431.8829887,0.00017897,2]
[398182706,1765425032918,-344.83103479,0.00017897,2]
[398182707,1765425032930,-1188.0,0.00017897,2]
[398182708,1765425032942,-1761.50840343,0.00017897,2]
[398182709,1765425037611,-885.31238533,0.00017897,2]
[398182710,1765425037621,-164.0,0.000179,2]
[398182711,1765425037630,-365.66619401,0.000179,2]
[398182712,1765425037639,-1163.2,0.00017903,2]
[398182713,1765425037648,-2195.8611737,0.00017977,2]
[398182714,1765425037657,-166.66,0.00017983,2]
[398182715,1765425037666,-1000.0,0.00017987,2]
[398182716,1765425037675,-164.0,0.0001799,2]
[398182717,1765425037684,-166.71,0.0001799,2]
[398182718,1765425037693,-190.58262894,0.00017993,2]
[398182719,1765425037702,-500.0,0.00017993,2]
[398182720,1765425037711,-500.0,0.00017993,2]
[398182721,1765425037720,-500.0,0.00017993,2]
[398182722,1765425037729,-500.0,0.00017993,2]
[398182723,1765425037737,-500.0,0.00017993,2]
[398182724,1765425037746,-500.0,0.00017993,2]
[398182725,1765425037755,-500.0,0.00017993,2]
[398182726,1765425037764,-500.0,0.00017993,2]
[398182727,1765425037773,-500.0,0.00017993,2]
[398182728,1765425037782,-500.0,0.00017993,2]
[398182729,1765425037790,-500.0,0.00017993,2]
[398182730,1765425037799,-500.0,0.00017993,2]
[398182731,1765425037808,-500.0,0.00017993,2]
[398182732,1765425037817,-500.0,0.00017993,2]
[398182733,1765425037826,-500.0,0.00017993,2]
[398182734,1765425037836,-500.0,0.00017993,2]
[398182735,1765425037845,-500.0,0.00017993,2]
[398182736,1765425037855,-500.0,0.00017993,2]
[398182737,1765425037864,-500.0,0.00017993,2]
[398182738,1765425037873,-500.0,0.00017993,2]
[398182739,1765425037884,-500.0,0.00017993,2]
[398182740,1765425037899,-500.0,0.00017993,2]
[398182741,1765425037908,-500.0,0.00017993,2]
[398182742,1765425037918,-500.0,0.00017993,2]
[398182743,1765425037928,-500.0,0.00017993,2]
[398182744,1765425037938,-500.0,0.00017993,2]
[398182745,1765425037947,-500.0,0.00017993,2]
[398182746,1765425037956,-500.0,0.00017993,2]
[398182747,1765425037967,-500.0,0.00017993,2]
[398182748,1765425037976,-500.0,0.00017993,2]
[398182749,1765425037985,-500.0,0.00017993,2]
[398182750,1765425037995,-500.0,0.00017993,2]
[398182751,1765425038004,-500.0,0.00017993,2]
[398182752,1765425038014,-500.0,0.00017993,2]
[398182753,1765425038023,-500.0,0.00017993,2]
[398182755,1765425038034,-500.0,0.00017993,2]
[398182757,1765425038043,-500.0,0.00017993,2]
[398182759,1765425038053,-500.0,0.00017993,2]
[398182761,1765425038062,-500.0,0.00017993,2]
[398182763,1765425038071,-500.0,0.00017993,2]
[398182765,1765425038080,-500.0,0.00017993,2]
[398182767,1765425038092,-500.0,0.00017993,2]
[398182769,1765425038102,-500.0,0.00017993,2]
[398182771,1765425038112,-500.0,0.00017993,2]
[398182773,1765425038121,-500.0,0.00017993,2]
[398182775,1765425038131,-500.0,0.00017993,2]
[398182776,1765425038140,-500.0,0.00017993,2]
[398182779,1765425038149,-500.0,0.00017993,2]
[398182780,1765425038159,-500.0,0.00017993,2]
[398182782,1765425038168,-500.0,0.00017993,2]
[398182784,1765425038178,-500.0,0.00017993,2]
[398182801,1765425038304,-500.0,0.00017993,2]
[398182805,1765425038351,-615.59904729,0.00017993,2]
[398182807,1765425038361,-500.0,0.00017993,2]
[398182808,1765425038370,-500.0,0.00017993,2]
[398182810,1765425038378,-500.0,0.00017993,2]
[398182812,1765425038388,-500.0,0.00017993,2]
[398182814,1765425038398,-500.0,0.00017993,2]
[398182816,1765425038408,-500.0,0.00017993,2]
[398182818,1765425038418,-500.0,0.00017993,2]
[398182820,1765425038428,-500.0,0.00017993,2]
[398182822,1765425038437,-500.0,0.00017993,2]
[398182824,1765425038446,-500.0,0.00017993,2]
[398182826,1765425038456,-500.0,0.00017993,2]
[398182828,1765425038466,-500.0,0.00017993,2]
[398182830,1765425038476,-500.0,0.00017993,2]
[398182832,1765425038486,-500.0,0.00017993,2]
[398182834,1765425038496,-500.0,0.00017993,2]
[398182836,1765425038506,-500.0,0.00017993,2]
[398182838,1765425038517,-500.0,0.00017993,2]
[398182840,1765425038527,-500.0,0.00017993,2]
[398182842,1765425038537,-500.0,0.00017993,2]
[398182844,1765425038547,-500.0,0.00017993,2]
[398182846,1765425038557,-500.0,0.00017993,2]
[398182848,1765425038567,-500.0,0.00017993,2]
[398182850,1765425038577,-500.0,0.00017993,2]
[398182852,1765425038587,-500.0,0.00017993,2]
[398182854,1765425038597,-500.0,0.00017993,2]
[398182856,1765425038607,-500.0,0.00017993,2]
[398182858,1765425038617,-500.0,0.00017993,2]
[398182860,1765425038627,-150.0,0.00017993,2]
[398182862,1765425038638,-500.0,0.00017993,2]
[398182864,1765425038652,-500.0,0.00017993,2]
[398182866,1765425038662,-500.0,0.00017993,2]
[398182868,1765425038672,-5577.1722929,0.00017993,2]
[398182870,1765425038681,-2214.0343473,0.00017994,2]
[398182872,1765425038691,-68647.863149,0.00017994,2]
[398182874,1765425038701,-151.0,0.00017996,2]
[398182876,1765425038711,-151.0,0.00017997,2]
[398182878,1765425038721,-8241.5590878,0.00017999,2]
[398182880,1765425038731,-500.0,0.00017999,2]
[398182882,1765425038741,-150.0,0.00017999,2]
[398182884,1765425038750,-150.0,0.00017999,2]
[398182886,1765425038760,-150.0,0.00017999,2]
[398182888,1765425038770,-150.0,0.00017999,2]
[398182891,1765425038780,-500.0,0.00017999,2]
[398182893,1765425038790,-150.0,0.00017999,2]